[Event "*** Titled Tuesday Blitz"]
[Site "Chess.com"]
[Date "2021.02.16"]
[Round "7"]
[White "ybruned"]
[Black "Nastya_Rakhmangulova"]
[Result "1-0"]
[WhiteElo "2317"]
[BlackElo "2458"]
[TimeControl "180+1"]
[EndTime "11:19:03 PST"]
[Termination "ybruned won by resignation"]

1. b3 {[%clk 0:03:00.9]} 1... Nf6 {[%clk 0:02:46.2]} 2. Bb2 {[%clk 0:02:59.8]}
2... g6 {[%clk 0:02:45.7]} 3. Bxf6 {[%clk 0:02:59.7]} 3... exf6 {[%clk
0:02:45.8]} 4. c4 {[%clk 0:03:00.6]} 4... d6 {[%clk 0:02:43.6]} 5. Nc3 {[%clk
0:03:00.8]} 5... c6 {[%clk 0:02:42.9]} 6. e3 {[%clk 0:02:58.6]} 6... Bg7 {[%clk
0:02:42.9]} 7. Nge2 {[%clk 0:02:57.2]} 7... h5 {[%clk 0:02:42.8]} 8. h4 {[%clk
0:02:54.6]} 8... a5 {[%clk 0:02:34.6]} 9. g3 {[%clk 0:02:48.5]} 9... Bg4 {[%clk
0:02:34.2]} 10. Bg2 {[%clk 0:02:47.6]} 10... Nd7 {[%clk 0:02:33.3]} 11. d4
{[%clk 0:02:45.9]} 11... Bxe2 {[%clk 0:02:31.8]} 12. Qxe2 {[%clk 0:02:43.4]}
12... O-O {[%clk 0:02:30.6]} 13. O-O {[%clk 0:02:42]} 13... f5 {[%clk
0:02:31.1]} 14. Rac1 {[%clk 0:02:35.1]} 14... Nf6 {[%clk 0:02:30.8]} 15. Rfd1
{[%clk 0:02:17.6]} 15... Ng4 {[%clk 0:02:30.1]} 16. Qf3 {[%clk 0:02:15.5]} 16...
Re8 {[%clk 0:02:27.7]} 17. a3 {[%clk 0:02:02.9]} 17... Qf6 {[%clk 0:02:09.3]}
18. b4 {[%clk 0:01:52.5]} 18... axb4 {[%clk 0:02:10.2]} 19. axb4 {[%clk
0:01:52.5]} 19... g5 {[%clk 0:02:00.4]} 20. hxg5 {[%clk 0:01:30.1]} 20... Qxg5
{[%clk 0:02:01.3]} 21. Qf4 {[%clk 0:01:30.5]} 21... Qf6 {[%clk 0:01:54.7]} 22.
b5 {[%clk 0:01:18.4]} 22... Ra3 {[%clk 0:01:39.2]} 23. bxc6 {[%clk 0:01:15.5]}
23... bxc6 {[%clk 0:01:40.1]} 24. Bxc6 {[%clk 0:01:11.9]} 24... Rc8 {[%clk
0:01:40.1]} 25. Bf3 {[%clk 0:01:12.4]} 25... Bh6 {[%clk 0:01:25.9]} 26. Nd5
{[%clk 0:01:03.4]} 26... Qe6 {[%clk 0:01:26]} 27. Qxf5 {[%clk 0:00:56.8]} 27...
Qxf5 {[%clk 0:01:14.3]} 28. Ne7+ {[%clk 0:00:55.7]} 28... Kh7 {[%clk 0:01:13.1]}
29. Nxf5 {[%clk 0:00:56.2]} 29... Bf8 {[%clk 0:01:08.9]} 30. Bxg4 {[%clk
0:00:50.8]} 30... hxg4 {[%clk 0:01:08.7]} 31. Rc2 {[%clk 0:00:46.6]} 31... Kg6
{[%clk 0:00:57.5]} 32. Nh4+ {[%clk 0:00:41.8]} 32... Kf6 {[%clk 0:00:57.5]} 33.
Ng2 {[%clk 0:00:41.8]} 33... Bh6 {[%clk 0:00:56.8]} 34. Nf4 {[%clk 0:00:36.9]}
34... Bxf4 {[%clk 0:00:52.7]} 35. gxf4 {[%clk 0:00:37.4]} 35... Kf5 {[%clk
0:00:52.5]} 36. Kg2 {[%clk 0:00:37.1]} 36... g3 {[%clk 0:00:49]} 37. Kxg3 {[%clk
0:00:35.1]} 37... Ke4 {[%clk 0:00:44.5]} 38. Rg1 {[%clk 0:00:23.4]} 38... Rh8
{[%clk 0:00:37.1]} 39. Rg2 {[%clk 0:00:15.7]} 39... Raa8 {[%clk 0:00:16.8]} 40.
f3+ {[%clk 0:00:14.5]} 40... Kxe3 {[%clk 0:00:17.7]} 41. Kg4 {[%clk 0:00:14.7]}
41... Kxd4 {[%clk 0:00:16.1]} 42. Rgd2+ {[%clk 0:00:12.6]} 42... Kc5 {[%clk
0:00:15.9]} 43. Rd5+ {[%clk 0:00:12.5]} 43... Kc6 {[%clk 0:00:16.4]} 44. Rcd2
{[%clk 0:00:12.9]} 44... Rag8+ {[%clk 0:00:15.5]} 45. Kf5 {[%clk 0:00:13.2]}
45... Rg6 {[%clk 0:00:16.4]} 46. Ke4 {[%clk 0:00:12.4]} 46... Rh5 {[%clk
0:00:16.3]} 47. Rxh5 {[%clk 0:00:11.7]} 47... Re6+ {[%clk 0:00:15.8]} 48. Kd3
{[%clk 0:00:11.5]} 48... Rf6 {[%clk 0:00:14.5]} 49. f5 {[%clk 0:00:11.1]} 49...
Kc5 {[%clk 0:00:15]} 50. Re2 {[%clk 0:00:11.2]} 1-0

[Event "*** Titled Tuesday Blitz"]
[Site "Chess.com"]
[Date "2021.02.16"]
[Round "7"]
[White "Srisshhhtea"]
[Black "kidagent"]
[Result "0-1"]
[WhiteElo "2419"]
[BlackElo "2312"]
[TimeControl "180+1"]
[EndTime "11:19:03 PST"]
[Termination "kidagent won by checkmate"]

1. d4 {[%clk 0:03:00.9]} 1... d5 {[%clk 0:03:00]} 2. c4 {[%clk 0:03:00.9]} 2...
c6 {[%clk 0:03:00.7]} 3. Nf3 {[%clk 0:02:58.5]} 3... Nf6 {[%clk 0:03:00.9]} 4.
e3 {[%clk 0:02:53.4]} 4... Bf5 {[%clk 0:03:00.3]} 5. Nc3 {[%clk 0:02:39.3]} 5...
e6 {[%clk 0:03:00]} 6. Nh4 {[%clk 0:02:38.9]} 6... Bg4 {[%clk 0:02:59.2]} 7. Qb3
{[%clk 0:02:25.3]} 7... Qc8 {[%clk 0:02:59.1]} 8. f3 {[%clk 0:02:23.1]} 8... Bh5
{[%clk 0:02:58.6]} 9. g4 {[%clk 0:02:18.7]} 9... Bg6 {[%clk 0:02:57.5]} 10. Bd2
{[%clk 0:02:17.3]} 10... Nbd7 {[%clk 0:02:53.5]} 11. cxd5 {[%clk 0:02:12.1]}
11... Nxd5 {[%clk 0:02:51.8]} 12. Nxd5 {[%clk 0:02:08.4]} 12... exd5 {[%clk
0:02:49.7]} 13. Bd3 {[%clk 0:02:02.7]} 13... Be7 {[%clk 0:02:42.6]} 14. Nf5
{[%clk 0:02:01.7]} 14... Bxf5 {[%clk 0:02:39.9]} 15. Bxf5 {[%clk 0:02:02.6]}
15... Bh4+ {[%clk 0:02:38.2]} 16. Kf1 {[%clk 0:02:00.6]} 16... Qc7 {[%clk
0:02:36.1]} 17. Kg2 {[%clk 0:01:57.3]} 17... O-O {[%clk 0:02:31.2]} 18. Rac1
{[%clk 0:01:55.1]} 18... Nb6 {[%clk 0:02:20.9]} 19. Ba5 {[%clk 0:01:39.7]} 19...
Qe7 {[%clk 0:02:03.9]} 20. Bb4 {[%clk 0:01:38.6]} 20... Qf6 {[%clk 0:01:57.5]}
21. Bxf8 {[%clk 0:01:37.9]} 21... Rxf8 {[%clk 0:01:58.1]} 22. Qd3 {[%clk
0:01:36.6]} 22... g6 {[%clk 0:01:56.9]} 23. e4 {[%clk 0:01:30.5]} 23... gxf5
{[%clk 0:01:55.7]} 24. gxf5 {[%clk 0:01:31.1]} 24... Kh8 {[%clk 0:01:51.7]} 25.
Rhg1 {[%clk 0:01:28]} 25... Nc4 {[%clk 0:01:47.7]} 26. b3 {[%clk 0:01:21.6]}
26... Nd6 {[%clk 0:01:33.1]} 27. Kh1 {[%clk 0:01:18.2]} 27... Bf2 {[%clk
0:01:20.8]} 28. Rgd1 {[%clk 0:00:58.4]} 28... Qh4 {[%clk 0:01:09.8]} 29. Rc2
{[%clk 0:00:57.9]} 29... dxe4 {[%clk 0:01:03.4]} 30. fxe4 {[%clk 0:00:49.8]}
30... Nxe4 {[%clk 0:01:03.4]} 31. Qf3 {[%clk 0:00:42.7]} 31... Rg8 {[%clk
0:00:57.8]} 32. d5 {[%clk 0:00:27.9]} 32... cxd5 {[%clk 0:00:51.1]} 33. Rc7
{[%clk 0:00:16.7]} 33... Bg3 {[%clk 0:00:35.2]} 34. Rc2 {[%clk 0:00:13.4]} 34...
Nf2+ {[%clk 0:00:34.3]} 35. Kg2 {[%clk 0:00:12]} 35... Nxd1 {[%clk 0:00:31.9]}
36. hxg3 {[%clk 0:00:10.2]} 36... Qe4 {[%clk 0:00:31.3]} 37. Qxe4 {[%clk
0:00:09.6]} 37... dxe4 {[%clk 0:00:32.2]} 38. Rd2 {[%clk 0:00:10.1]} 38... Ne3+
{[%clk 0:00:31.6]} 39. Kf2 {[%clk 0:00:10.8]} 39... Nxf5 {[%clk 0:00:32.5]} 40.
g4 {[%clk 0:00:11.3]} 40... Rxg4 {[%clk 0:00:31.6]} 41. Rd8+ {[%clk 0:00:10.4]}
41... Kg7 {[%clk 0:00:31.5]} 42. Re8 {[%clk 0:00:10.8]} 42... e3+ {[%clk
0:00:30.5]} 43. Kf3 {[%clk 0:00:11.3]} 43... Rh4 {[%clk 0:00:29.7]} 44. Re5
{[%clk 0:00:10.2]} 44... Kf6 {[%clk 0:00:29.3]} 45. Rb5 {[%clk 0:00:09.8]} 45...
b6 {[%clk 0:00:29.5]} 46. Rb4 {[%clk 0:00:09.5]} 46... Rxb4 {[%clk 0:00:28.4]}
47. a4 {[%clk 0:00:09.3]} 47... Rxb3 {[%clk 0:00:28.2]} 48. a5 {[%clk
0:00:09.8]} 48... bxa5 {[%clk 0:00:28.1]} 49. Kf4 {[%clk 0:00:09.7]} 49... e2
{[%clk 0:00:26.2]} 50. Kg4 {[%clk 0:00:10.6]} 50... e1=Q {[%clk 0:00:25.9]} 51.
Kh5 {[%clk 0:00:11.5]} 51... Qh4# {[%clk 0:00:23.6]} 0-1

[Event "*** Titled Tuesday Blitz"]
[Site "Chess.com"]
[Date "2021.02.16"]
[Round "7"]
[White "Maddie"]
[Black "mirochka"]
[Result "0-1"]
[WhiteElo "2043"]
[BlackElo "2270"]
[TimeControl "180+1"]
[EndTime "11:19:04 PST"]
[Termination "mirochka won by resignation"]

1. d4 {[%clk 0:03:00.9]} 1... Nf6 {[%clk 0:02:59.3]} 2. e3 {[%clk 0:03:00.9]}
2... d5 {[%clk 0:02:58.7]} 3. Bd3 {[%clk 0:03:01.3]} 3... g6 {[%clk 0:02:50.7]}
4. f4 {[%clk 0:03:01]} 4... Bg7 {[%clk 0:02:50.2]} 5. Nf3 {[%clk 0:03:01.5]}
5... c5 {[%clk 0:02:46]} 6. c3 {[%clk 0:03:01.1]} 6... Nc6 {[%clk 0:02:44.1]} 7.
O-O {[%clk 0:03:00.7]} 7... b6 {[%clk 0:02:34.8]} 8. Ne5 {[%clk 0:02:53]} 8...
Bb7 {[%clk 0:02:30.3]} 9. Bb5 {[%clk 0:02:45.7]} 9... Rc8 {[%clk 0:02:16.9]} 10.
Qa4 {[%clk 0:02:35.7]} 10... Qc7 {[%clk 0:02:08.6]} 11. Nd2 {[%clk 0:02:05.6]}
11... O-O {[%clk 0:02:04.8]} 12. Nxc6 {[%clk 0:02:02.9]} 12... Bxc6 {[%clk
0:02:05.7]} 13. Bxc6 {[%clk 0:02:03.2]} 13... Qxc6 {[%clk 0:02:05.5]} 14. Qxc6
{[%clk 0:01:55.3]} 14... Rxc6 {[%clk 0:02:04.8]} 15. Nf3 {[%clk 0:01:55.7]}
15... cxd4 {[%clk 0:01:52.6]} 16. exd4 {[%clk 0:01:53.5]} 16... b5 {[%clk
0:01:48.1]} 17. Ne5 {[%clk 0:01:52.8]} 17... Rc7 {[%clk 0:01:40.8]} 18. Bd2
{[%clk 0:01:47.3]} 18... Ne4 {[%clk 0:01:38.9]} 19. Be3 {[%clk 0:01:44]} 19...
a5 {[%clk 0:01:37.5]} 20. a3 {[%clk 0:01:43.5]} 20... Rfc8 {[%clk 0:01:33.9]}
21. Nf3 {[%clk 0:01:38.6]} 21... e6 {[%clk 0:01:19]} 22. Nd2 {[%clk 0:01:37.3]}
22... f5 {[%clk 0:01:14.2]} 23. Nxe4 {[%clk 0:01:36.1]} 23... fxe4 {[%clk
0:01:14.5]} 24. Rf2 {[%clk 0:01:23.6]} 24... Rc4 {[%clk 0:01:13.3]} 25. Rff1
{[%clk 0:01:19.7]} 25... b4 {[%clk 0:01:11.8]} 26. axb4 {[%clk 0:01:18.9]} 26...
axb4 {[%clk 0:01:09.5]} 27. Bd2 {[%clk 0:01:14.8]} 27... bxc3 {[%clk 0:00:47.4]}
28. bxc3 {[%clk 0:01:13.9]} 28... e3 {[%clk 0:00:40.5]} 29. Bxe3 {[%clk
0:01:13.5]} 29... Rxc3 {[%clk 0:00:40.8]} 30. Bf2 {[%clk 0:01:05.3]} 30... Rd3
{[%clk 0:00:39.8]} 31. Rfd1 {[%clk 0:01:01.6]} 31... Rxd1+ {[%clk 0:00:30]} 32.
Rxd1 {[%clk 0:01:00.9]} 32... Rc4 {[%clk 0:00:29.8]} 33. Kf1 {[%clk 0:00:59.9]}
33... Kf7 {[%clk 0:00:29.5]} 34. Ke2 {[%clk 0:00:59.5]} 34... Rc2+ {[%clk
0:00:27.4]} 35. Kf3 {[%clk 0:00:56.9]} 35... h5 {[%clk 0:00:25.4]} 36. h3 {[%clk
0:00:52.2]} 36... Bh6 {[%clk 0:00:19.4]} 37. Be3 {[%clk 0:00:43]} 37... Rc3
{[%clk 0:00:18.8]} 38. Kf2 {[%clk 0:00:38.9]} 38... Rb3 {[%clk 0:00:18.8]} 39.
Rd2 {[%clk 0:00:38.4]} 39... Kf6 {[%clk 0:00:17.8]} 40. g4 {[%clk 0:00:37.4]}
40... hxg4 {[%clk 0:00:17.2]} 41. hxg4 {[%clk 0:00:37.8]} 41... g5 {[%clk
0:00:17.1]} 42. fxg5+ {[%clk 0:00:37.2]} 42... Bxg5 {[%clk 0:00:17.6]} 43. Bxg5+
{[%clk 0:00:37.3]} 43... Kxg5 {[%clk 0:00:18.3]} 44. Re2 {[%clk 0:00:36.5]}
44... Kf6 {[%clk 0:00:18]} 45. Re5 {[%clk 0:00:34.8]} 45... Rd3 {[%clk
0:00:17.7]} 46. g5+ {[%clk 0:00:34.8]} 46... Kf7 {[%clk 0:00:17.1]} 47. g6+
{[%clk 0:00:34.4]} 47... Kf6 {[%clk 0:00:16.4]} 48. g7 {[%clk 0:00:33.4]} 48...
Kxg7 {[%clk 0:00:17]} 49. Rxe6 {[%clk 0:00:33.4]} 49... Rxd4 {[%clk 0:00:17.6]}
50. Re3 {[%clk 0:00:32.2]} 50... Kf6 {[%clk 0:00:17.7]} 51. Ke2 {[%clk
0:00:32.1]} 51... Kf5 {[%clk 0:00:17.7]} 52. Rf3+ {[%clk 0:00:30.9]} 52... Ke5
{[%clk 0:00:17.5]} 53. Re3+ {[%clk 0:00:30.8]} 53... Re4 {[%clk 0:00:17.9]} 54.
Rxe4+ {[%clk 0:00:30.7]} 54... Kxe4 {[%clk 0:00:18]} 55. Kd2 {[%clk 0:00:31.1]}
55... Kd4 {[%clk 0:00:18.6]} 56. Ke2 {[%clk 0:00:29.6]} 56... Kc3 {[%clk
0:00:19]} 57. Kd1 {[%clk 0:00:29.7]} 57... Kd3 {[%clk 0:00:19.3]} 58. Ke1 {[%clk
0:00:28.8]} 58... Kc2 {[%clk 0:00:19.4]} 59. Ke2 {[%clk 0:00:29.1]} 59... d4
{[%clk 0:00:20.3]} 60. Ke1 {[%clk 0:00:29.1]} 60... d3 {[%clk 0:00:21.2]} 0-1

[Event "*** Titled Tuesday Blitz"]
[Site "Chess.com"]
[Date "2021.02.16"]
[Round "7"]
[White "Piccadilly123"]
[Black "canary2016"]
[Result "1-0"]
[WhiteElo "2247"]
[BlackElo "1967"]
[TimeControl "180+1"]
[EndTime "11:19:04 PST"]
[Termination "Piccadilly123 won by checkmate"]

1. e4 {[%clk 0:03:00.9]} 1... c6 {[%clk 0:02:58.8]} 2. Nc3 {[%clk 0:03:00.4]}
2... d5 {[%clk 0:02:58.4]} 3. d4 {[%clk 0:03:01.3]} 3... dxe4 {[%clk 0:02:56.7]}
4. Nxe4 {[%clk 0:03:02.2]} 4... Nf6 {[%clk 0:02:56.9]} 5. Nxf6+ {[%clk
0:03:01.7]} 5... exf6 {[%clk 0:02:56.9]} 6. c3 {[%clk 0:03:01.1]} 6... Bd6
{[%clk 0:02:56.5]} 7. Bd3 {[%clk 0:03:01.4]} 7... O-O {[%clk 0:02:55.3]} 8. Qc2
{[%clk 0:03:01.9]} 8... Re8+ {[%clk 0:02:54.5]} 9. Ne2 {[%clk 0:03:02.5]} 9...
h5 {[%clk 0:02:53.5]} 10. Be3 {[%clk 0:02:59]} 10... Nd7 {[%clk 0:02:51.8]} 11.
O-O-O {[%clk 0:02:58.5]} 11... Nf8 {[%clk 0:02:48.1]} 12. Rde1 {[%clk
0:02:46.5]} 12... Be6 {[%clk 0:02:47.1]} 13. Kb1 {[%clk 0:02:45.1]} 13... Qa5
{[%clk 0:02:39.3]} 14. b3 {[%clk 0:02:35.2]} 14... b5 {[%clk 0:02:32.3]} 15. Bd2
{[%clk 0:02:33.3]} 15... Qc7 {[%clk 0:02:28.7]} 16. f3 {[%clk 0:02:23.7]} 16...
a5 {[%clk 0:02:28.1]} 17. g4 {[%clk 0:02:23.5]} 17... h4 {[%clk 0:02:21.2]} 18.
g5 {[%clk 0:02:10.9]} 18... a4 {[%clk 0:02:08.5]} 19. b4 {[%clk 0:01:58.8]}
19... Be7 {[%clk 0:02:07.1]} 20. Bf4 {[%clk 0:01:50.2]} 20... Qd7 {[%clk
0:01:56.2]} 21. Rhg1 {[%clk 0:01:42.4]} 21... Qd5 {[%clk 0:01:53.3]} 22. Bc1
{[%clk 0:01:31.1]} 22... Qd7 {[%clk 0:01:23.6]} 23. f4 {[%clk 0:01:12.2]} 23...
Bd5 {[%clk 0:01:12.3]} 24. f5 {[%clk 0:01:04.7]} 24... Qc7 {[%clk 0:00:47.3]}
25. Nf4 {[%clk 0:00:31.1]} 25... Bc4 {[%clk 0:00:44.9]} 26. gxf6 {[%clk
0:00:19.5]} 26... Bxd3 {[%clk 0:00:33.7]} 27. Rxg7+ {[%clk 0:00:17.3]} 27... Kh8
{[%clk 0:00:33.4]} 28. Qxd3 {[%clk 0:00:16.2]} 28... Bxf6 {[%clk 0:00:29.6]} 29.
Rxe8 {[%clk 0:00:11.4]} 29... Rxe8 {[%clk 0:00:27.8]} 30. Rg8+ {[%clk
0:00:11.9]} 30... Kxg8 {[%clk 0:00:21.7]} 31. Nh5 {[%clk 0:00:11.4]} 31... Qe7
{[%clk 0:00:13.6]} 32. Nxf6+ {[%clk 0:00:06]} 32... Qxf6 {[%clk 0:00:13.3]} 33.
Qf1 {[%clk 0:00:06.6]} 33... Nh7 {[%clk 0:00:13.1]} 34. Qg2+ {[%clk 0:00:06.9]}
34... Kh8 {[%clk 0:00:13.2]} 35. Qg4 {[%clk 0:00:05.9]} 35... Rg8 {[%clk
0:00:12.9]} 36. Qf4 {[%clk 0:00:05.9]} 36... Qg5 {[%clk 0:00:11.8]} 37. Qe5+
{[%clk 0:00:05.4]} 37... Qg7 {[%clk 0:00:11.8]} 38. Qf4 {[%clk 0:00:04.8]} 38...
Nf6 {[%clk 0:00:11.2]} 39. Qxh4+ {[%clk 0:00:03.3]} 39... Qh7 {[%clk 0:00:11]}
40. Qxf6+ {[%clk 0:00:03.1]} 40... Qg7 {[%clk 0:00:10.8]} 41. Qxc6 {[%clk
0:00:03.4]} 41... Qh7 {[%clk 0:00:08.9]} 42. Qxb5 {[%clk 0:00:03.7]} 42... Rf8
{[%clk 0:00:08]} 43. Qe5+ {[%clk 0:00:03.8]} 43... Qg7 {[%clk 0:00:07.5]} 44. f6
{[%clk 0:00:04.4]} 44... Qg6+ {[%clk 0:00:07.2]} 45. Ka1 {[%clk 0:00:02.6]}
45... Rg8 {[%clk 0:00:07.3]} 46. Qf4 {[%clk 0:00:03.1]} 46... Qg1 {[%clk
0:00:06.2]} 47. Qh4# {[%clk 0:00:03.3]} 1-0

[Event "*** Titled Tuesday Blitz"]
[Site "Chess.com"]
[Date "2021.02.16"]
[Round "7"]
[White "Zq1"]
[Black "Spriteball"]
[Result "1/2-1/2"]
[WhiteElo "2499"]
[BlackElo "2371"]
[TimeControl "180+1"]
[EndTime "11:19:05 PST"]
[Termination "Game drawn by repetition"]

1. Nf3 {[%clk 0:02:32.6]} 1... Nf6 {[%clk 0:02:59.1]} 2. c4 {[%clk 0:02:31.8]}
2... e6 {[%clk 0:02:59.1]} 3. Nc3 {[%clk 0:02:31.5]} 3... d5 {[%clk 0:02:59.2]}
4. d4 {[%clk 0:02:31.7]} 4... c6 {[%clk 0:02:59.2]} 5. Bg5 {[%clk 0:02:28.6]}
5... Nbd7 {[%clk 0:02:58.8]} 6. e3 {[%clk 0:02:28]} 6... Qa5 {[%clk 0:02:58.6]}
7. Nd2 {[%clk 0:02:25.9]} 7... dxc4 {[%clk 0:02:56.5]} 8. Bxf6 {[%clk
0:02:25.8]} 8... Nxf6 {[%clk 0:02:57.4]} 9. Nxc4 {[%clk 0:02:25.7]} 9... Qc7
{[%clk 0:02:56.4]} 10. Be2 {[%clk 0:02:24.6]} 10... Bb4 {[%clk 0:02:56]} 11. O-O
{[%clk 0:02:24]} 11... O-O {[%clk 0:02:51.1]} 12. Rc1 {[%clk 0:02:24]} 12... Bd7
{[%clk 0:02:47]} 13. a3 {[%clk 0:02:24]} 13... Bxc3 {[%clk 0:02:45.7]} 14. Rxc3
{[%clk 0:02:23.4]} 14... Rad8 {[%clk 0:02:37.8]} 15. b4 {[%clk 0:02:22.2]} 15...
Nd5 {[%clk 0:02:26.2]} 16. Rc2 {[%clk 0:02:21.3]} 16... Be8 {[%clk 0:02:17.5]}
17. Qc1 {[%clk 0:02:20.1]} 17... f6 {[%clk 0:02:11]} 18. f4 {[%clk 0:02:19.1]}
18... Bg6 {[%clk 0:02:10.4]} 19. Rb2 {[%clk 0:02:09.4]} 19... b5 {[%clk
0:01:46.7]} 20. Na5 {[%clk 0:02:08.3]} 20... e5 {[%clk 0:01:46.7]} 21. fxe5
{[%clk 0:01:36.9]} 21... fxe5 {[%clk 0:01:43.9]} 22. Rxf8+ {[%clk 0:01:31.9]}
22... Rxf8 {[%clk 0:01:44.8]} 23. Qxc6 {[%clk 0:01:29.7]} 23... Qf7 {[%clk
0:01:25.9]} 24. Bxb5 {[%clk 0:01:20]} 24... Nxe3 {[%clk 0:01:19.6]} 25. h3
{[%clk 0:01:16.3]} 25... exd4 {[%clk 0:01:15.4]} 26. Bc4 {[%clk 0:01:07.9]}
26... Nxc4 {[%clk 0:01:13.4]} 27. Qxc4 {[%clk 0:01:07.3]} 27... Qxc4 {[%clk
0:01:08.3]} 28. Nxc4 {[%clk 0:01:06.7]} 28... Rc8 {[%clk 0:01:07.9]} 29. Ne5
{[%clk 0:01:00.5]} 29... d3 {[%clk 0:00:55]} 30. Nxg6 {[%clk 0:00:44.8]} 30...
hxg6 {[%clk 0:00:54.4]} 31. Rd2 {[%clk 0:00:34.6]} 31... Rc3 {[%clk 0:00:52.4]}
32. a4 {[%clk 0:00:34.2]} 32... Ra3 {[%clk 0:00:48.4]} 33. b5 {[%clk 0:00:32.5]}
33... Kf7 {[%clk 0:00:44]} 34. Kf2 {[%clk 0:00:31.7]} 34... Ke6 {[%clk 0:00:40]}
35. Ke3 {[%clk 0:00:30.4]} 35... Rxa4 {[%clk 0:00:39.3]} 36. Rxd3 {[%clk
0:00:26.6]} 36... Rb4 {[%clk 0:00:36.7]} 37. Ra3 {[%clk 0:00:26.2]} 37... Rxb5
{[%clk 0:00:36.1]} 38. Rxa7 {[%clk 0:00:23.4]} 38... Kf6 {[%clk 0:00:35.5]} 39.
Kf4 {[%clk 0:00:21.5]} 39... Rb4+ {[%clk 0:00:35.5]} 40. Kg3 {[%clk 0:00:21.6]}
40... Rb3+ {[%clk 0:00:35.7]} 41. Kh2 {[%clk 0:00:16.6]} 41... Rc3 {[%clk
0:00:35.6]} 42. Ra6+ {[%clk 0:00:14.6]} 42... Kf7 {[%clk 0:00:35.4]} 43. h4
{[%clk 0:00:13.7]} 43... Rb3 {[%clk 0:00:29.1]} 44. Ra5 {[%clk 0:00:13.2]} 44...
Rc3 {[%clk 0:00:28.3]} 45. g3 {[%clk 0:00:12.8]} 45... Rb3 {[%clk 0:00:28.3]}
46. Kh3 {[%clk 0:00:13]} 46... Rb4 {[%clk 0:00:28]} 47. Rg5 {[%clk 0:00:10.9]}
47... Kf6 {[%clk 0:00:27]} 48. Rg4 {[%clk 0:00:11]} 48... Rb3 {[%clk 0:00:26.4]}
49. Rf4+ {[%clk 0:00:10.9]} 49... Ke6 {[%clk 0:00:25.8]} 50. Kg4 {[%clk
0:00:11.1]} 50... Rb5 {[%clk 0:00:25.5]} 51. Rf8 {[%clk 0:00:09.7]} 51... Rc5
{[%clk 0:00:24.2]} 52. Ra8 {[%clk 0:00:08.5]} 52... Rb5 {[%clk 0:00:23.6]} 53.
Ra4 {[%clk 0:00:06.6]} 53... Rc5 {[%clk 0:00:22.5]} 54. Rf4 {[%clk 0:00:06.3]}
54... Rb5 {[%clk 0:00:22.2]} 55. Rf3 {[%clk 0:00:06]} 55... Rc5 {[%clk
0:00:21.6]} 56. Rf4 {[%clk 0:00:06.2]} 56... Rb5 {[%clk 0:00:21.5]} 1/2-1/2

[Event "*** Titled Tuesday Blitz"]
[Site "Chess.com"]
[Date "2021.02.16"]
[Round "7"]
[White "Pantata007"]
[Black "Klavdia_Nik"]
[Result "1-0"]
[WhiteElo "2268"]
[BlackElo "2045"]
[TimeControl "180+1"]
[EndTime "11:19:05 PST"]
[Termination "Pantata007 won on time"]

1. d4 {[%clk 0:03:00.9]} 1... Nf6 {[%clk 0:02:57]} 2. c4 {[%clk 0:03:00.3]} 2...
c5 {[%clk 0:02:56.8]} 3. d5 {[%clk 0:03:00]} 3... b5 {[%clk 0:02:56.9]} 4. cxb5
{[%clk 0:03:00.9]} 4... a6 {[%clk 0:02:56.8]} 5. bxa6 {[%clk 0:03:01.8]} 5...
Bxa6 {[%clk 0:02:56.7]} 6. Nc3 {[%clk 0:03:02.1]} 6... d6 {[%clk 0:02:56.7]} 7.
e4 {[%clk 0:03:02.4]} 7... Bxf1 {[%clk 0:02:56.4]} 8. Kxf1 {[%clk 0:03:03.3]}
8... g6 {[%clk 0:02:56.7]} 9. g3 {[%clk 0:03:03.6]} 9... Bg7 {[%clk 0:02:57.2]}
10. Kg2 {[%clk 0:03:03.6]} 10... O-O {[%clk 0:02:57.7]} 11. Nf3 {[%clk
0:03:03.8]} 11... Ng4 {[%clk 0:02:52.5]} 12. a4 {[%clk 0:02:54.9]} 12... Qa5
{[%clk 0:02:48]} 13. Bd2 {[%clk 0:02:54]} 13... Na6 {[%clk 0:02:40.2]} 14. Nb5
{[%clk 0:02:41.2]} 14... Nb4 {[%clk 0:02:39.6]} 15. Bc3 {[%clk 0:02:41.2]} 15...
Nf6 {[%clk 0:02:15.4]} 16. Nd2 {[%clk 0:02:10.2]} 16... Rfc8 {[%clk 0:02:06.9]}
17. Nc4 {[%clk 0:02:09.1]} 17... Qa6 {[%clk 0:02:06.9]} 18. Re1 {[%clk
0:01:59.6]} 18... Qb7 {[%clk 0:02:00.2]} 19. Qe2 {[%clk 0:01:35.4]} 19... Ne8
{[%clk 0:01:36.1]} 20. h4 {[%clk 0:01:25.7]} 20... Rcb8 {[%clk 0:00:53.1]} 21.
Qd2 {[%clk 0:01:20.7]} 21... Nc7 {[%clk 0:00:47.9]} 22. Nxc7 {[%clk 0:01:01.8]}
22... Qxc7 {[%clk 0:00:43.1]} 23. a5 {[%clk 0:00:57.1]} 23... Na6 {[%clk
0:00:38.4]} 24. Nb6 {[%clk 0:00:52.3]} 24... Ra7 {[%clk 0:00:38.5]} 25. Rec1
{[%clk 0:00:48.8]} 25... Qd8 {[%clk 0:00:27.8]} 26. h5 {[%clk 0:00:33.5]} 26...
Nc7 {[%clk 0:00:26.1]} 27. hxg6 {[%clk 0:00:31.9]} 27... hxg6 {[%clk 0:00:25.4]}
28. Rh1 {[%clk 0:00:28.1]} 28... f6 {[%clk 0:00:22.2]} 29. Qf4 {[%clk
0:00:21.1]} 29... Kf7 {[%clk 0:00:16.4]} 30. Qg4 {[%clk 0:00:20.5]} 30... Qg8
{[%clk 0:00:14.7]} 31. Rh2 {[%clk 0:00:08.9]} 31... Nb5 {[%clk 0:00:13.3]} 32.
Rah1 {[%clk 0:00:05.6]} 32... Kf8 {[%clk 0:00:06.2]} 33. Rh7 {[%clk 0:00:03.2]}
33... Rbb7 {[%clk 0:00:05.4]} 34. Nc4 {[%clk 0:00:02.6]} 34... Rc7 {[%clk
0:00:04.2]} 35. Bxf6 {[%clk 0:00:01.8]} 35... exf6 {[%clk 0:00:03.5]} 36. Qxg6
{[%clk 0:00:01.8]} 36... Qf7 {[%clk 0:00:02.3]} 37. Qf5 {[%clk 0:00:02.2]} 37...
Ke7 {[%clk 0:00:01.5]} 38. Rxg7 {[%clk 0:00:02.4]} 38... Qxg7 {[%clk 0:00:01.1]}
39. Rh7 {[%clk 0:00:03.3]} 1-0